fUST/lending_fUST_20240910
["ID","MTS","AMOUNT","RATE_DAILY","PERIOD"]
[337700941,1725977320103,-500.0,0.00017473,2]
[337700942,1725977320126,-1317.9,0.00017473,2]
[337700943,1725977320148,-500.0,0.00017473,2]
[337700944,1725977320172,-500.0,0.00017473,2]
[337700945,1725977320195,-1700.48,0.00017473,2]
[337700946,1725977320220,-500.0,0.00017473,2]
[337700947,1725977320241,-500.0,0.00017473,2]
[337700948,1725977320263,-979.55,0.00017473,2]
[337700949,1725977320285,-500.0,0.00017473,2]
[337700950,1725977320308,-500.0,0.00017473,2]
[337700951,1725977320332,-500.0,0.00017473,2]
[337700952,1725977320356,-1948.15,0.00017473,2]
[337700953,1725977320378,-927.58,0.00017473,2]
[337700954,1725977320400,-573.55,0.00017473,2]
[337700955,1725977320422,-609.13,0.00017473,2]
[337700956,1725977320445,-500.0,0.00017473,2]
[337700957,1725977320467,-500.0,0.00017473,2]
[337700958,1725977320490,-500.0,0.00017473,2]
[337700959,1725977320514,-46463.43,0.00017473,2]
[337700960,1725977320536,-500.0,0.00017473,2]
[337700961,1725977320558,-1505.73,0.00017473,2]
[337700962,1725977320580,-500.0,0.00017473,2]
[337700963,1725977320603,-500.0,0.00017473,2]
[337700964,1725977320625,-500.0,0.00017473,2]
[337700965,1725977320647,-1653.81,0.00017473,2]
[337700966,1725977320668,-1308.6,0.00017473,2]
[337700967,1725977320690,-500.0,0.00017473,2]
[337700968,1725977320712,-862.02,0.00017473,2]
[337700969,1725977320736,-500.0,0.00017473,2]
[337700970,1725977320758,-2038.68,0.00017473,2]
[337700971,1725977320781,-2042.91,0.00017473,2]
[337700972,1725977320803,-500.0,0.00017473,2]
[337700973,1725977320826,-500.0,0.00017473,2]
[337700974,1725977320849,-436.13194639,0.00017473,2]
[337700975,1725977320873,-500.0,0.00017473,2]
[337700976,1725977320895,-540.08,0.00017473,2]
[337700977,1725977320918,-500.0,0.00017473,2]
[337700978,1725977320942,-504.82391829,0.00017473,2]
[337700979,1725977320965,-500.0,0.00017473,2]
[337700980,1725977320991,-500.0,0.00017473,2]
[337700981,1725977321013,-500.0,0.00017473,2]
[337700982,1725977321037,-500.0,0.00017473,2]
[337700983,1725977321060,-500.0,0.00017473,2]
[337700984,1725977321083,-500.0,0.00017473,2]
[337700985,1725977321105,-311.45765862,0.00017473,2]
[337700986,1725977321127,-500.0,0.00017473,2]
[337700987,1725977321150,-500.0,0.00017473,2]
[337700988,1725977321173,-500.0,0.00017473,2]
[337700989,1725977321195,-500.0,0.00017473,2]
[337700990,1725977321217,-500.0,0.00017473,2]
[337700991,1725977321243,-500.0,0.00017473,2]
[337700992,1725977321266,-41.41728605,0.00017473,2]
[337701007,1725977374443,250.0,0.00016597,2]
[337701008,1725977374681,250.0,0.00016643,2]
[337701009,1725977374911,250.0,0.00016688,2]
[337701010,1725977375163,250.0,0.00016734,2]
[337701011,1725977375403,250.0,0.00016779,2]
[337701012,1725977375651,250.0,0.00016825,2]
[337701013,1725977375909,250.0,0.0001687,2]
[337701014,1725977376126,250.0,0.00016916,2]
[337701015,1725977376380,250.0,0.00016961,2]
[337701016,1725977377006,250.0,0.00017007,2]
[337701273,1725977432413,-250.0,0.00017052,2]
[337701275,1725977432423,-250.0,0.00017098,2]
[337701277,1725977432432,-136.53625817,0.00017143,2]
[337701279,1725977432445,-113.46374183,0.00017143,2]
[337701281,1725977432455,-250.0,0.00017189,2]
[337701283,1725977432465,-250.0,0.00017234,2]
[337701285,1725977432475,-250.0,0.0001728,2]
[337701287,1725977432485,-250.0,0.00017325,2]
[337701289,1725977432495,-250.0,0.00017371,2]
[337701291,1725977432504,-250.0,0.00017416,2]
[337701293,1725977432513,-250.0,0.00017462,2]
[337701295,1725977432523,-300.0,0.0001747,2]
[337701297,1725977432532,-300.0,0.0001747,2]
[337701299,1725977432542,-500.0,0.00017471,2]
[337701301,1725977432551,-155.53388557,0.00017471,2]
[337701303,1725977432563,-1582.23,0.00017471,2]
[337701305,1725977432573,-500.0,0.00017471,2]
[337701307,1725977432582,-914.43596441,0.00017471,2]
[337701309,1725977432592,-914.43596441,0.00017471,2]
[337701310,1725977432602,-914.43596441,0.00017471,2]
[337701311,1725977432612,-914.43596441,0.00017471,2]
[337701312,1725977432622,-914.43596441,0.00017471,2]
[337701313,1725977432632,-914.43596441,0.00017471,2]
[337701315,1725977432642,-914.43596441,0.00017471,2]
[337701316,1725977432652,-914.43596441,0.00017471,2]
[337701317,1725977432661,-914.43596441,0.00017471,2]
[337701318,1725977432673,-914.43596441,0.00017471,2]
[337701319,1725977432684,-914.43596441,0.00017471,2]
[337701321,1725977432694,-914.43596441,0.00017471,2]
[337701323,1725977432703,-914.43596441,0.00017471,2]
[337701324,1725977432713,-914.43596441,0.00017471,2]
[337701326,1725977432722,-914.43596441,0.00017471,2]
[337701328,1725977432732,-914.43596441,0.00017471,2]
[337701330,1725977432741,-914.43596441,0.00017471,2]
[337701331,1725977432750,-914.43596441,0.00017471,2]
[337701332,1725977432759,-914.43596441,0.00017471,2]
[337701334,1725977432769,-914.43596441,0.00017471,2]
[337701336,1725977432778,-914.43596441,0.00017471,2]
[337701338,1725977432788,-914.43596441,0.00017471,2]
[337701339,1725977432798,-914.43596441,0.00017471,2]
[337701340,1725977432809,-914.43596441,0.00017471,2]
[337701341,1725977432818,-914.43596441,0.00017471,2]
[337701342,1725977432828,-914.43596441,0.00017471,2]
[337701343,1725977432838,-914.43596441,0.00017471,2]
[337701344,1725977432849,-914.43596441,0.00017471,2]
[337701345,1725977432858,-914.43596441,0.00017471,2]
[337701346,1725977432867,-914.43596441,0.00017471,2]
[337701347,1725977432877,-914.43596441,0.00017471,2]
[337701348,1725977432887,-914.43596441,0.00017471,2]
[337701349,1725977432896,-914.43596441,0.00017471,2]
[337701350,1725977432907,-914.43596441,0.00017471,2]
[337701351,1725977432917,-914.43596441,0.00017471,2]
[337701352,1725977432928,-914.43596441,0.00017471,2]
[337701353,1725977432939,-914.43596441,0.00017471,2]
[337701354,1725977432950,-914.43596441,0.00017471,2]
[337701355,1725977432964,-914.43596441,0.00017471,2]
[337701356,1725977432974,-914.43596441,0.00017471,2]
[337701357,1725977432985,-221.4236272,0.00017471,2]
[337701358,1725977433000,-693.01233721,0.00017471,2]
[337701359,1725977433010,-102.68296126,0.00017471,2]
[337701360,1725977433023,-293.56680005,0.00017471,2]
[337701367,1725977438592,-518.1862031,0.00017471,2]
[337701369,1725977438602,-914.43596441,0.00017471,2]
[337701371,1725977438611,-567.37783249,0.00017471,2]
[337701373,1725977440232,-347.05813192,0.00017471,2]
[337701374,1725977440242,-914.43596441,0.00017471,2]
[337701375,1725977440251,-914.43596441,0.00017471,2]
[337701376,1725977440261,-914.43596441,0.00017471,2]
[337701377,1725977440270,-914.43596441,0.00017471,2]
[337701378,1725977440280,-914.43596441,0.00017471,2]
[337701379,1725977440289,-914.43596441,0.00017471,2]
[337701380,1725977440299,-914.43596441,0.00017471,2]
[337701381,1725977440308,-914.43596441,0.00017471,2]
[337701382,1725977440319,-914.43596441,0.00017471,2]
[337701383,1725977440329,-914.43596441,0.00017471,2]
[337701385,1725977440339,-914.43596441,0.00017471,2]
[337701386,1725977440349,-914.43596441,0.00017471,2]
[337701387,1725977440358,-914.43596441,0.00017471,2]
[337701388,1725977440367,-914.43596441,0.00017471,2]
[337701390,1725977440377,-914.43596441,0.00017471,2]
[337701392,1725977440387,-914.43596441,0.00017471,2]
[337701394,1725977440396,-914.43596441,0.00017471,2]
[337701396,1725977440406,-914.43596441,0.00017471,2]
[337701398,1725977440415,-955.46135639,0.00017471,2]
[337701399,1725977440425,-955.46135639,0.00017471,2]
[337701400,1725977440435,-563.01302601,0.00017471,2]
[337701401,1725977440463,-392.44833038,0.00017471,2]
[337701402,1725977440472,-3581.73,0.00017471,2]
[337701403,1725977440482,-955.46135639,0.00017471,2]
[337701404,1725977440492,-955.46135639,0.00017471,2]
[337701405,1725977440502,-955.46135639,0.00017471,2]
[337701406,1725977440511,-955.46135639,0.00017471,2]
[337701407,1725977440521,-955.46135639,0.00017471,2]
[337701408,1725977440530,-955.46135639,0.00017471,2]
[337701409,1725977440540,-955.46135639,0.00017471,2]
[337701410,1725977440550,-955.46135639,0.00017471,2]
[337701411,1725977440560,-955.46135639,0.00017471,2]
[337701412,1725977440570,-955.46135639,0.00017471,2]
[337701413,1725977440579,-955.46135639,0.00017471,2]
[337701414,1725977440589,-955.46135639,0.00017471,2]
[337701415,1725977440598,-323.41607761,0.00017471,2]
[337701416,1725977440696,-632.04527878,0.00017471,2]
[337701417,1725977440705,-955.46135639,0.00017471,2]
[337701418,1725977440715,-955.46135639,0.00017471,2]
[337701419,1725977440724,-955.46135639,0.00017471,2]
[337701420,1725977440734,-500.0,0.00017471,2]
[337701421,1725977440744,-955.4613564,0.00017471,2]
[337701422,1725977440754,-955.4613564,0.00017471,2]
[337701423,1725977440763,-955.4613564,0.00017471,2]
[337701424,1725977440772,-955.4613564,0.00017471,2]
[337701425,1725977440781,-684.08,0.00017471,2]
[337701426,1725977440791,-500.0,0.00017471,2]
[337701427,1725977440800,-794.58,0.00017471,2]
[337701428,1725977440809,-777.93,0.00017471,2]
[337701429,1725977440822,-500.0,0.00017471,2]
[337701430,1725977440831,-652.97,0.00017471,2]
[337701431,1725977440842,-613.0,0.00017471,2]
[337701432,1725977440854,-500.0,0.00017471,2]
[337701433,1725977440864,-500.0,0.00017472,2]
[337701434,1725977440873,-500.0,0.00017472,2]
[337701435,1725977440883,-1866.98,0.00017472,2]
[337701436,1725977440894,-44527.46,0.00017472,2]
[337701437,1725977440903,-1584.9,0.00017472,2]
[337701438,1725977440913,-1953.74,0.00017472,2]
[337701439,1725977440922,-1957.79,0.00017472,2]
[337701440,1725977440934,-458.58271395,0.00017473,2]
[337701441,1725977440945,-500.0,0.00017473,2]
[337701442,1725977440955,-500.0,0.00017473,2]
[337701443,1725977440965,-500.0,0.00017473,2]
[337701444,1725977440975,-500.0,0.00017473,2]
[337701445,1725977440985,-741.12,0.00017473,2]
[337701446,1725977440995,-500.0,0.00017473,2]
[337701447,1725977441005,-500.0,0.00017473,2]
[337701448,1725977441015,-3905.01,0.00017473,2]
[337701449,1725977441025,-500.0,0.00017473,2]
[337701450,1725977441035,-500.0,0.00017473,2]
[337701451,1725977441045,-500.0,0.00017473,2]
[337701452,1725977441054,-500.0,0.00017473,2]
[337701453,1725977441071,-500.0,0.00017473,2]
[337701454,1725977441080,-157.79172514,0.00017473,2]
[337701455,1725977441090,-500.0,0.00017473,2]
[337701456,1725977441099,-500.0,0.00017473,2]
[337701457,1725977441108,-527.84608972,0.00017473,2]
[337701458,1725977441119,-500.0,0.00017473,2]
[337701459,1725977441128,-500.0,0.00017473,2]
[337701460,1725977441138,-500.0,0.00017473,2]
[337701461,1725977441147,-500.0,0.00017473,2]
[337701462,1725977441156,-1873.45,0.00017473,2]
[337701463,1725977441165,-1439.24,0.00017473,2]
[337701464,1725977441175,-500.0,0.00017473,2]
[337701465,1725977441184,-500.0,0.00017473,2]
[337701466,1725977441194,-500.0,0.00017473,2]
[337701467,1725977441203,-500.0,0.00017473,2]
[337701468,1725977441213,-500.0,0.00017473,2]
[337701469,1725977441222,-500.0,0.00017473,2]
[337701470,1725977441378,-742.29,0.00017473,2]
[337701471,1725977441388,-500.0,0.00017473,2]
[337701472,1725977441398,-3036.85,0.00017473,2]
[337701473,1725977441408,-1390.89,0.00017473,2]
[337701474,1725977441418,-500.0,0.00017473,2]
[337701475,1725977441427,-839.17,0.00017473,2]
[337701476,1725977441436,-500.0,0.00017473,2]
[337701477,1725977441446,-500.0,0.00017473,2]
[337701478,1725977441456,-500.0,0.00017473,2]
[337701479,1725977441465,-926.04,0.00017473,2]
[337701480,1725977441474,-500.0,0.00017473,2]
[337701481,1725977441483,-620.25,0.00017473,2]
[337701482,1725977441493,-500.0,0.00017473,2]
[337701483,1725977441503,-500.0,0.00017473,2]
[337701484,1725977441512,-3994.78,0.00017473,2]
[337701485,1725977441522,-1780.46,0.00017473,2]
[337701486,1725977441531,-500.0,0.00017473,2]
[337701487,1725977441541,-500.0,0.00017473,2]
[337701488,1725977441550,-500.0,0.00017473,2]
[337701489,1725977441559,-943.23,0.00017473,2]
[337701490,1725977441571,-500.0,0.00017473,2]
[337701491,1725977441581,-500.0,0.00017473,2]
[337701492,1725977441590,-500.0,0.00017473,2]
[337701493,1725977441600,-1374.94,0.00017473,2]
[337701494,1725977441610,-990.06,0.00017473,2]
[337701495,1725977441620,-1340.66,0.00017473,2]
[337701496,1725977441629,-543.68,0.00017473,2]
[337701497,1725977441639,-1093.91,0.00017473,2]
[337701498,1725977441649,-640.2,0.00017473,2]
[337701499,1725977441658,-584.58,0.00017473,2]
[337701500,1725977441669,-500.0,0.00017473,2]
[337701501,1725977441678,-500.0,0.00017473,2]
[337701502,1725977441688,-500.0,0.00017473,2]
[337701503,1725977441697,-500.0,0.00017473,2]
[337701504,1725977441707,-1618.22,0.00017473,2]
[337701505,1725977441717,-541.41,0.00017473,2]
[337701506,1725977441726,-627.16,0.00017473,2]
[337701507,1725977441736,-500.0,0.00017473,2]
[337701508,1725977441746,-500.0,0.00017473,2]
[337701509,1725977441756,-690.77,0.00017473,2]
[337701510,1725977441766,-500.0,0.00017473,2]
[337701511,1725977441775,-500.0,0.00017473,2]
[337701512,1725977441785,-573.32,0.00017473,2]
[337701513,1725977441794,-1521.45,0.00017473,2]
[337701514,1725977441803,-500.0,0.00017473,2]
[337701515,1725977441816,-500.0,0.00017473,2]
[337701516,1725977441826,-500.0,0.00017473,2]
[337701517,1725977441836,-500.0,0.00017473,2]
[337701518,1725977441847,-500.0,0.00017473,2]
[337701519,1725977441858,-583.86,0.00017473,2]
[337701520,1725977441868,-500.0,0.00017473,2]
[337701521,1725977441877,-500.0,0.00017473,2]
[337701522,1725977441887,-500.0,0.00017473,2]
[337701523,1725977441898,-511.51285638,0.00017473,2]
[337701524,1725977441908,-500.0,0.00017473,2]
[337701525,1725977441918,-500.0,0.00017473,2]
[337701526,1725977441930,-500.0,0.00017473,2]
[337701527,1725977441939,-500.0,0.00017473,2]
[337701528,1725977441948,-1120.9,0.00017473,2]
[337701529,1725977441958,-529.85,0.00017473,2]
[337701530,1725977441971,-729.39,0.00017473,2]
[337701531,1725977441986,-613.85,0.00017473,2]
[337701532,1725977441996,-588.46,0.00017473,2]
[337701533,1725977442006,-36198.52,0.00017473,2]
[337701534,1725977442016,-500.0,0.00017473,2]
[337701535,1725977442025,-500.0,0.00017473,2]
[337701536,1725977442036,-900.71,0.00017473,2]
[337701537,1725977442045,-500.0,0.00017473,2]
[337701538,1725977442055,-525.41445975,0.00017473,2]
[337701539,1725977442068,-500.0,0.00017473,2]
[337701540,1725977442079,-1210.57,0.00017473,2]
[337701541,1725977442089,-500.0,0.00017473,2]
[337701542,1725977442099,-500.0,0.00017473,2]
[337701543,1725977442109,-500.0,0.00017473,2]
[337701544,1725977442118,-482.711662,0.00017473,2]
[337701545,1725977442129,-500.0,0.00017473,2]
[337701546,1725977442139,-500.0,0.00017473,2]
[337701547,1725977442154,-500.0,0.00017473,2]
[337701548,1725977442170,-500.0,0.00017473,2]
[337701549,1725977442180,-5476.12,0.00017473,2]
[337701550,1725977442190,-500.0,0.00017473,2]
[337701551,1725977442200,-766.81,0.00017473,2]
[337701552,1725977442210,-500.0,0.00017474,2]
[337701553,1725977442220,-500.0,0.00017474,2]
[337701554,1725977442230,-500.0,0.00017474,2]
[337701555,1725977442240,-500.0,0.00017474,2]
[337701556,1725977442250,-659.14,0.00017474,2]
[337701557,1725977442259,-1810.43,0.00017474,2]
[337701558,1725977442269,-500.0,0.00017474,2]
[337701559,1725977442278,-1250.47,0.00017474,2]
[337701560,1725977442287,-1834.6,0.00017474,2]
[337701561,1725977442297,-3739.85,0.00017474,2]
[337701562,1725977442306,-500.0,0.00017474,2]
[337701563,1725977442320,-746.08,0.00017474,2]
[337701564,1725977442330,-879.8,0.00017474,2]
[337701565,1725977442339,-500.0,0.00017474,2]
[337701566,1725977442349,-1523.58,0.00017474,2]
[337701567,1725977442358,-1372.07,0.00017474,2]
[337701568,1725977442369,-613.13,0.00017474,2]
[337701569,1725977442379,-500.0,0.00017474,2]
[337701570,1725977442388,-1131.96,0.00017474,2]
[337701571,1725977442397,-1537.71,0.00017474,2]
[337701572,1725977442407,-585.75,0.00017474,2]
[337701573,1725977442417,-63036.67,0.00017474,2]
[337701574,1725977442426,-583.41,0.00017474,2]
[337701575,1725977442435,-500.0,0.00017475,2]
[337701576,1725977442445,-500.0,0.00017475,2]
[337701577,1725977442455,-643.42,0.00017475,2]
[337701578,1725977442465,-500.0,0.00017475,2]
[337701579,1725977442475,-500.0,0.00017475,2]
[337701580,1725977442484,-500.0,0.00017475,2]
[337701581,1725977442493,-820.6,0.00017475,2]
[337701582,1725977442502,-768.11,0.00017475,2]
[337701583,1725977442512,-500.0,0.00017475,2]
[337701584,1725977442521,-500.0,0.00017475,2]
[337701585,1725977442530,-950.91,0.00017475,2]
[337701586,1725977442539,-500.0,0.00017475,2]
[337701587,1725977442549,-805.81,0.00017475,2]
[337701588,1725977442558,-857.73,0.00017475,2]
[337701589,1725977442573,-500.0,0.00017475,2]
[337701590,1725977442582,-500.0,0.00017475,2]
[337701591,1725977442591,-715.87,0.00017475,2]
[337701592,1725977442600,-615.86,0.00017475,2]
[337701593,1725977442610,-1613.93,0.00017475,2]
[337701594,1725977442619,-500.0,0.00017475,2]
[337701595,1725977442628,-500.0,0.00017475,2]
[337701596,1725977442637,-1089.91,0.00017475,2]
[337701597,1725977442646,-500.0,0.00017475,2]
[337701598,1725977442655,-500.0,0.00017475,2]
[337701599,1725977442665,-1084.47,0.00017475,2]
[337701600,1725977442674,-500.0,0.00017475,2]
[337701601,1725977442683,-790.7,0.00017475,2]
[337701602,1725977442693,-763.0,0.00017475,2]
[337701603,1725977442702,-1220.62,0.00017475,2]
[337701604,1725977442711,-1724.13,0.00017475,2]
[337701605,1725977442721,-1784.25,0.00017475,2]
[337701606,1725977442730,-1312.04,0.00017475,2]
[337701607,1725977442739,-500.0,0.00017475,2]
[337701608,1725977442749,-1855.88,0.00017475,2]
[337701609,1725977442758,-610.0,0.00017475,2]
[337701610,1725977442768,-500.0,0.00017475,2]
[337701611,1725977442777,-500.0,0.00017475,2]
[337701612,1725977442787,-500.0,0.00017475,2]
[337701613,1725977442796,-593.39,0.00017475,2]
[337701614,1725977442805,-599.24,0.00017475,2]
[337701615,1725977442816,-716.51,0.00017475,2]
[337701616,1725977442825,-1167.29,0.00017475,2]
[337701617,1725977442835,-500.0,0.00017475,2]
[337701618,1725977442845,-500.0,0.00017475,2]
[337701619,1725977442857,-911.47,0.00017475,2]
[337701620,1725977442866,-2319.6,0.00017475,2]
[337701621,1725977442875,-923.16,0.00017475,2]
[337701622,1725977442885,-1666.28,0.00017475,2]
[337701623,1725977442895,-500.0,0.00017475,2]
[337701624,1725977442904,-4274.93,0.00017475,2]
[337701625,1725977442913,-500.0,0.00017475,2]
[337701626,1725977442924,-500.0,0.00017475,2]
[337701627,1725977442933,-500.0,0.00017475,2]
[337701628,1725977442943,-500.0,0.00017475,2]
[337701630,1725977442952,-500.0,0.00017475,2]
[337701632,1725977442962,-643.22,0.00017475,2]
[337701634,1725977442971,-553.59,0.00017475,2]
[337701636,1725977442980,-500.0,0.00017475,2]
[337701637,1725977442989,-627.83,0.00017475,2]
[337701639,1725977442999,-1193.43,0.00017475,2]
[337701641,1725977443007,-587.16,0.00017475,2]
[337701642,1725977443017,-609.34,0.00017475,2]
[337701643,1725977443026,-632.54,0.00017475,2]
[337701644,1725977443035,-736.06,0.00017475,2]
[337701645,1725977443043,-531.78,0.00017475,2]
[337701646,1725977443052,-2101.72,0.00017475,2]
[337701647,1725977443062,-649.84,0.00017475,2]
[337701648,1725977443072,-1713.04,0.00017475,2]
[337701649,1725977443082,-706.72,0.00017475,2]
[337701651,1725977443091,-500.0,0.00017475,2]
[337701653,1725977443101,-505.67,0.00017475,2]
[337701654,1725977443110,-3156.47420673,0.00017647,2]
[337701655,1725977443120,-238.471073,0.000177,2]
[337701656,1725977443130,-1582.23,0.00017745,2]
[337701657,1725977443140,-3581.73,0.00017745,2]
[337701658,1725977443149,-684.08,0.00017745,2]
[337701660,1725977443158,-794.58,0.00017745,2]
[337701661,1725977443167,-777.93,0.00017745,2]
[337701663,1725977443176,-652.97,0.00017745,2]
[337701664,1725977443186,-613.0,0.00017745,2]
[337701665,1725977443195,-500.0,0.00017746,2]
[337701666,1725977443205,-3767.92,0.00017746,2]
[337701667,1725977443214,-6655.97,0.00017746,2]
[337701668,1725977443223,-3477.1,0.00017746,2]
[337701669,1725977443233,-850.93,0.00017746,2]
[337701671,1725977443242,-1117.07,0.00017746,2]
[337701673,1725977443252,-1277.8,0.00017746,2]
[337701675,1725977443261,-666.17,0.00017746,2]
[337701677,1725977443271,-500.0,0.00017746,2]
[337701679,1725977443280,-1477.93,0.00017746,2]
[337701681,1725977443289,-531.1195458,0.00017746,2]
[337701682,1725977443298,-500.0,0.00017746,2]
[337701683,1725977443308,-500.0,0.00017746,2]
[337701684,1725977443319,-1866.98,0.00017746,2]
[337701685,1725977443329,-44527.46,0.00017746,2]
[337701686,1725977443338,-1584.9,0.00017746,2]
[337701687,1725977443347,-1953.74,0.00017746,2]
[337701688,1725977443357,-1957.79,0.00017746,2]
[337701689,1725977443367,-500.0,0.00017747,2]
[337701690,1725977443376,-500.0,0.00017747,2]
[337701692,1725977443385,-500.0,0.00017747,2]
[337701693,1725977443394,-500.0,0.00017747,2]
[337701695,1725977443403,-500.0,0.00017747,2]
[337701696,1725977443413,-500.0,0.00017747,2]
[337701697,1725977443422,-424.18479251,0.00017747,2]
[337701698,1725977443431,-500.0,0.00017747,2]
[337701699,1725977443440,-500.0,0.00017747,2]
[337701700,1725977443449,-604.68045794,0.00017747,2]
[337701701,1725977443458,-500.0,0.00017747,2]
[337701702,1725977443468,-558.35165465,0.00017747,2]
[337701704,1725977443477,-500.0,0.00017747,2]
[337701705,1725977443486,-1148.55,0.00017747,2]
[337701706,1725977443495,-500.0,0.00017747,2]
[337701707,1725977443504,-500.0,0.00017747,2]
[337701708,1725977443513,-500.0,0.00017747,2]
[337701709,1725977443523,-243.39,0.00017747,2]
[337701710,1725977443532,-500.0,0.00017747,2]
[337701711,1725977443542,-1009.4,0.00017747,2]
[337701712,1725977443552,-500.0,0.00017747,2]
[337701713,1725977443563,-591.37,0.00017747,2]
[337701714,1725977443572,-500.0,0.00017747,2]
[337701715,1725977443581,-500.0,0.00017747,2]
[337701716,1725977443590,-500.0,0.00017747,2]
[337701717,1725977443601,-500.0,0.00017747,2]
[337701718,1725977443610,-500.0,0.00017747,2]
[337701719,1725977443619,-500.0,0.00017747,2]
[337701720,1725977443629,-500.0,0.00017747,2]
[337701721,1725977443638,-500.0,0.00017747,2]
[337701722,1725977443648,-223.39716534,0.00017747,2]
[337701723,1725977443657,-500.0,0.00017747,2]
[337701724,1725977443667,-1300.99,0.00017747,2]
[337701725,1725977443676,-500.0,0.00017747,2]
[337701726,1725977443685,-1370.86,0.00017747,2]
[337701727,1725977443694,-500.0,0.00017747,2]
[337701728,1725977443704,-500.0,0.00017747,2]
[337701729,1725977443713,-500.0,0.00017747,2]
[337701730,1725977443722,-510.94,0.00017747,2]
[337701731,1725977443731,-640.94,0.00017747,2]
[337701732,1725977443741,-500.0,0.00017747,2]
[337701733,1725977443749,-500.0,0.00017747,2]
[337701734,1725977443759,-500.0,0.00017747,2]
[337701735,1725977443768,-500.0,0.00017747,2]
[337701736,1725977443777,-500.0,0.00017747,2]
[337701737,1725977443786,-655.24,0.00017747,2]
[337701738,1725977443796,-576.42,0.00017747,2]
[337701739,1725977443806,-500.0,0.00017747,2]
[337701740,1725977443817,-500.0,0.00017747,2]
[337701741,1725977443826,-500.0,0.00017747,2]
[337701742,1725977443835,-630.63,0.00017747,2]
[337701743,1725977443845,-500.0,0.00017747,2]
[337701744,1725977443859,-500.0,0.00017747,2]
[337701745,1725977443868,-500.0,0.00017747,2]
[337701746,1725977443877,-500.0,0.00017747,2]
[337701747,1725977443887,-183.23177496,0.00017747,2]
[337701748,1725977443896,-500.0,0.00017747,2]
[337701749,1725977443905,-500.0,0.00017747,2]
[337701750,1725977443915,-500.0,0.00017747,2]
[337701751,1725977443925,-1700.48,0.00017747,2]
[337701752,1725977443935,-500.0,0.00017747,2]
[337701753,1725977443945,-500.0,0.00017747,2]
[337701754,1725977443955,-979.55,0.00017747,2]
[337701755,1725977443965,-500.0,0.00017747,2]
[337701756,1725977443974,-500.0,0.00017747,2]
[337701757,1725977443983,-927.58,0.00017747,2]
[337701758,1725977443992,-573.55,0.00017747,2]
[337701759,1725977444002,-609.13,0.00017747,2]
[337701760,1725977444011,-500.0,0.00017747,2]
[337701761,1725977444147,-500.0,0.00017747,2]
[337701762,1725977444157,-500.0,0.00017747,2]
[337701763,1725977444166,-500.0,0.00017747,2]
[337701764,1725977444176,-1505.73,0.00017747,2]
[337701765,1725977444185,-500.0,0.00017747,2]
[337701766,1725977444194,-500.0,0.00017747,2]
[337701767,1725977444203,-500.0,0.00017747,2]
[337701768,1725977444212,-1308.6,0.00017747,2]
[337701769,1725977444222,-500.0,0.00017747,2]
[337701770,1725977444231,-862.02,0.00017747,2]
[337701771,1725977444241,-580.70980569,0.00017747,2]